[Event "FIDE WCCC Open-12 2024"]
[Site "Montesilvano"]
[Date "2024.11.18"]
[Round "3.16"]
[White "Liu, Patrick"]
[Black "Gazzato, Nicolo`"]
[Result "1-0"]
[ECO "E94"]
[WhiteElo "2192"]
[BlackElo "1868"]
[PlyCount "117"]
[EventDate "2024.11.18"]
[EventType "swiss"]
[EventCountry "ITA"]
[TimeControl "5400+30"]

1. Nf3 {[%emt 0:00:02]} Nf6 {[%emt 0:01:59]} 2. c4 {[%emt 0:00:02]} g6 {[%emt 0:00:18]} 3. Nc3 {[%emt 0:00:03]} Bg7 {[%emt 0:00:11]} 4. e4 {[%emt 0:00:27]} d6 {[%emt 0:00:07]} 5. d4 {[%emt 0:00:12]} Nbd7 {[%emt 0:00:22]} 6. Be2 {[%emt 0:04:17]} c6 {[%emt 0:01:36]} 7. O-O {[%emt 0:02:28]} O-O {[%emt 0:00:35]} 8. Be3 {[%emt 0:02:19]} e5 {[%emt 0:01:13]} 9. Qc2 {[%emt 0:05:22]} a6 {[%emt 0:03:13]} 10. Rad1 {[%emt 0:02:00]} Qe7 {[%emt 0:07:24]} 11. Rfe1 {[%emt 0:07:38]} h6 {[%emt 0:14:26]} 12. dxe5 {[%emt 0:12:15]} dxe5 {[%emt 0:03:30]} 13. h3 {[%emt 0:01:02]} Kh7 {[%emt 0:03:43]} 14. Nd2 {[%emt 0:07:09]} Ne8 {[%emt 0:09:37]} 15. Na4 {[%emt 0:05:13]} Nc7 {[%emt 0:06:18]} 16. Bg4 {[%emt 0:05:20]} Ne6 {[%emt 0:07:23]} 17. Bxe6 {[%emt 0:12:49]} Qxe6 {[%emt 0:00:31]} 18. c5 {[%emt 0:00:21]} Qe7 {[%emt 0:06:06]} 19. Nc4 {[%emt 0:01:11]} Nf6 {[%emt 0:02:10]} 20. Nab6 {[%emt 0:02:44]} Rb8 {[%emt 0:01:35]} 21. Nxc8 {[%emt 0:04:10]} Rbxc8 {[%emt 0:00:31]} 22. Rd6 {[%emt 0:01:12]} Rfd8 {[%emt 0:02:32]} 23. Nb6 {[%emt 0:02:52]} Rb8 {[%emt 0:01:04]} 24. Red1 {[%emt 0:00:33]} Rh8 {[%emt 0:08:31]} 25. Qc4 {[%emt 0:01:25]} Rbf8 {[%emt 0:01:10]} 26. Nd7 {[%emt 0:02:50]} Rd8 {[%emt 0:01:44]} 27. Nxf6+ {[%emt 0:02:10]} Bxf6 {[%emt 0:00:11]} 28. Rxd8 {[%emt 0:00:18]} Rxd8 {[%emt 0:00:01]} 29. Rxd8 {[%emt 0:00:03]} Qxd8 {[%emt 0:00:01]} 30. Qxf7+ {[%emt 0:00:03]} Bg7 {[%emt 0:00:00]} 31. Qxb7 {[%emt 0:00:25]} Qd1+ {[%emt 0:00:23]} 32. Kh2 {[%emt 0:00:02]} Qa4 {[%emt 0:00:05]} 33. b3 {[%emt 0:03:00]} Qxe4 {[%emt 0:00:18]} 34. Qxa6 {[%emt 0:00:10]} Qd5 {[%emt 0:00:07]} 35. Qc4 {[%emt 0:00:25]} Qd7 {[%emt 0:00:30]} 36. Qe4 {[%emt 0:00:57]} Qb7 {[%emt 0:00:21]} 37. a4 {[%emt 0:00:52]} Qa6 {[%emt 0:00:51]} 38. Qc4 {[%emt 0:01:01]} Qa5 {[%emt 0:00:38]} 39. Qe4 {[%emt 0:00:36]} Qa6 {[%emt 0:00:11]} 40. g3 {[%emt 0:00:43]} Bf6 {[%emt 0:00:37]} 41. Qc4 {[%emt 0:01:11]} Qa8 {[%emt 0:02:05]} 42. a5 {[%emt 0:01:09]} Qxa5 {[%emt 0:01:09]} 43. Qe6 {[%emt 0:00:15]} Qd8 {[%emt 0:00:39]} 44. Qxc6 {[%emt 0:00:19]} Bg5 {[%emt 0:01:29]} 45. Qd6 {[%emt 0:00:23]} Qe8 {[%emt 0:01:34]} 46. Bxg5 {[%emt 0:00:14]} hxg5 {[%emt 0:00:05]} 47. c6 {[%emt 0:00:05]} Qa8 {[%emt 0:01:09]} 48. c7 {[%emt 0:00:27]} Qc8 {[%emt 0:00:50]} 49. Qxe5 {[%emt 0:00:42]} Qf8 {[%emt 0:01:04]} 50. Kg1 {[%emt 0:00:14]} Qc8 {[%emt 0:00:41]} 51. Qc5 {[%emt 0:00:08]} g4 {[%emt 0:00:42]} 52. hxg4 {[%emt 0:00:18]} Kh6 {[%emt 0:01:22]} 53. b4 {[%emt 0:00:26]} Kg7 {[%emt 0:00:59]} 54. Qd4+ {[%emt 0:00:14]} Kf7 {[%emt 0:00:14]} 55. Qd8 {[%emt 0:00:27]} Qe6 {[%emt 0:00:21]} 56. c8=Q {[%emt 0:00:43]} Qe1+ {[%emt 0:00:08]} 57. Kg2 {[%emt 0:00:07]} Qe4+ {[%emt 0:00:12]} 58. Kh2 {[%emt 0:00:10]} Qg2+ {[%emt 0:00:29]} 59. Kxg2 {[%emt 0:00:09]} 1-0

[Event "FIDE WCCC Open-12 2024"]
[Site "Montesilvano"]
[Date "2024.11.18"]
[Round "3.17"]
[White "Yang, Maxwell"]
[Black "Ambartsumian, Tyhran"]
[Result "1-0"]
[ECO "E53"]
[WhiteElo "1889"]
[BlackElo "2123"]
[PlyCount "97"]
[EventDate "2024.11.18"]
[EventType "swiss"]
[EventCountry "ITA"]
[TimeControl "5400+30"]

1. d4 {[%emt 0:00:09]} Nf6 {[%emt 0:00:35]} 2. c4 {[%emt 0:00:10]} e6 {[%emt 0:00:03]} 3. Nc3 {[%emt 0:00:08]} Bb4 {[%emt 0:00:05]} 4. e3 {[%emt 0:00:08]} O-O {[%emt 0:00:05]} 5. Bd3 {[%emt 0:00:06]} d5 {[%emt 0:00:04]} 6. a3 {[%emt 0:00:20]} Bxc3+ {[%emt 0:00:05]} 7. bxc3 {[%emt 0:00:07]} dxc4 {[%emt 0:00:02]} 8. Bxc4 {[%emt 0:00:10]} c5 {[%emt 0:00:00]} 9. Nf3 {[%emt 0:00:10]} Qc7 {[%emt 0:00:03]} 10. Be2 {[%emt 0:00:07]} b6 {[%emt 0:00:04]} 11. O-O {[%emt 0:00:12]} Ba6 {[%emt 0:01:51]} 12. a4 {[%emt 0:08:04]} Bxe2 {[%emt 0:02:48]} 13. Qxe2 {[%emt 0:00:56]} cxd4 {[%emt 0:00:08]} 14. cxd4 {[%emt 0:00:17]} Nbd7 {[%emt 0:00:39]} 15. Ba3 {[%emt 0:00:54]} Rfc8 {[%emt 0:02:30]} 16. Rfc1 {[%emt 0:01:32]} Qb7 {[%emt 0:00:51]} 17. Nd2 {[%emt 0:14:36]} Nd5 {[%emt 0:25:21]} 18. Qd3 {[%emt 0:04:38]} Rxc1+ {[%emt 0:03:26]} 19. Rxc1 {[%emt 0:00:13]} Rc8 {[%emt 0:00:03]} 20. Rc4 {[%emt 0:08:05]} h6 {[%emt 0:18:59]} 21. Kf1 {[%emt 0:09:06]} a6 {[%emt 0:00:30]} 22. e4 {[%emt 0:12:23]} Rxc4 {[%emt 0:02:17]} 23. Qxc4 {[%emt 0:04:06]} b5 {[%emt 0:01:11]} 24. Qb3 {[%emt 0:01:32]} N5f6 {[%emt 0:01:19]} 25. f3 {[%emt 0:01:12]} Qc6 {[%emt 0:00:19]} 26. axb5 {[%emt 0:01:00]} axb5 {[%emt 0:00:05]} 27. Ke2 {[%emt 0:01:52]} h5 {[%emt 0:01:34]} 28. Nb1 {[%emt 0:01:59]} Qc7 {[%emt 0:02:55]} 29. g3 {[%emt 0:04:27]} Qa7 {[%emt 0:10:40]} 30. Bb2 {[%emt 0:03:57]} Qa6 {[%emt 0:03:37]} 31. Kf2 {[%emt 0:04:56]} Qb6 {[%emt 0:02:00]} 32. Na3 {[%emt 0:02:06]} b4 {[%emt 0:08:57]} 33. Nc2 {[%emt 0:02:46]} Qb7 {[%emt 0:06:51]} 34. Qxb4 {[%emt 0:00:30]} Nxe4+ {[%emt 0:00:49]} 35. fxe4 {[%emt 0:00:35]} Qxe4 {[%emt 0:00:01]} 36. Ne3 {[%emt 0:01:01]} Qh1 {[%emt 0:00:10]} 37. d5 {[%emt 0:06:19]} Qxh2+ {[%emt 0:03:15]} 38. Ng2 {[%emt 0:00:15]} exd5 {[%emt 0:00:06]} 39. Qc3 {[%emt 0:01:34]} Nf6 {[%emt 0:01:17]} 40. Qc8+ {[%emt 0:00:08]} Kh7 {[%emt 0:00:04]} 41. Bxf6 {[%emt 0:00:07]} gxf6 {[%emt 0:00:04]} 42. Qf8 {[%emt 0:00:15]} Qh1 {[%emt 0:00:57]} 43. Qxf7+ {[%emt 0:00:06]} Kh8 {[%emt 0:00:03]} 44. Qxf6+ {[%emt 0:00:19]} Kg8 {[%emt 0:00:05]} 45. Qg5+ {[%emt 0:00:39]} Kh8 {[%emt 0:00:09]} 46. Qxd5 {[%emt 0:00:15]} Qa1 {[%emt 0:00:09]} 47. Qxh5+ {[%emt 0:00:06]} Kg7 {[%emt 0:00:03]} 48. Ne3 {[%emt 0:00:11]} Qd4 {[%emt 0:00:05]} 49. Qg4+ {[%emt 0:00:10]} 1-0

[Event "FIDE WCCC Open-12 2024"]
[Site "Montesilvano"]
[Date "2024.11.18"]
[Round "3.18"]
[White "Fulgentini, Edoardo"]
[Black "Xia, Jinnan"]
[Result "1-0"]
[ECO "B90"]
[WhiteElo "2075"]
[BlackElo "1850"]
[PlyCount "77"]
[EventDate "2024.11.18"]
[EventType "swiss"]
[EventCountry "ITA"]
[TimeControl "5400+30"]

1. e4 {[%emt 0:00:02]} c5 {[%emt 0:00:08]} 2. Nf3 {[%emt 0:00:04]} d6 {[%emt 0:00:03]} 3. d4 {[%emt 0:00:04]} cxd4 {[%emt 0:00:03]} 4. Nxd4 {[%emt 0:00:05]} Nf6 {[%emt 0:00:04]} 5. Nc3 {[%emt 0:00:05]} a6 {[%emt 0:00:03]} 6. Rg1 {[%emt 0:00:13]} e5 {[%emt 0:00:24]} 7. Nb3 {[%emt 0:00:36]} Be6 {[%emt 0:00:52]} 8. f4 {[%emt 0:00:28]} Qb6 {[%emt 0:11:49]} 9. Rh1 {[%emt 0:00:06]} Nbd7 {[%emt 0:08:40]} 10. f5 {[%emt 0:03:45]} Bxb3 {[%emt 0:00:04]} 11. axb3 {[%emt 0:00:06]} Rc8 {[%emt 0:00:54]} 12. Bc4 {[%emt 0:03:11]} Qc6 {[%emt 0:00:21]} 13. Qe2 {[%emt 0:22:32]} Be7 {[%emt 0:03:27]} 14. Bg5 {[%emt 0:04:16]} h6 {[%emt 0:08:59]} 15. Bxf6 {[%emt 0:00:47]} Nxf6 {[%emt 0:00:06]} 16. g4 {[%emt 0:05:43]} Nd7 {[%emt 0:10:29]} 17. O-O-O {[%emt 0:04:08]} b5 {[%emt 0:01:50]} 18. Bd5 {[%emt 0:01:45]} Qc7 {[%emt 0:01:22]} 19. h4 {[%emt 0:02:07]} Nb6 {[%emt 0:05:07]} 20. Kb1 {[%emt 0:01:37]} b4 {[%emt 0:05:05]} 21. Na4 {[%emt 0:02:30]} Nxa4 {[%emt 0:04:25]} 22. bxa4 {[%emt 0:00:11]} Qb6 {[%emt 0:00:44]} 23. Bb3 {[%emt 0:01:31]} f6 {[%emt 0:03:40]} 24. g5 {[%emt 0:04:29]} fxg5 {[%emt 0:09:22]} 25. Qh5+ {[%emt 0:00:30]} Kd8 {[%emt 0:00:03]} 26. Qg6 {[%emt 0:01:07]} gxh4 {[%emt 0:01:28]} 27. Qxg7 {[%emt 0:00:09]} Rf8 {[%emt 0:00:08]} 28. Rxh4 {[%emt 0:04:15]} Bxh4 {[%emt 0:07:38]} 29. Qxf8+ {[%emt 0:00:05]} Kc7 {[%emt 0:00:02]} 30. Qxh6 {[%emt 0:00:52]} Bd8 {[%emt 0:00:54]} 31. Be6 {[%emt 0:01:36]} Ra8 {[%emt 0:00:26]} 32. Qf8 {[%emt 0:06:02]} Ra7 {[%emt 0:01:43]} 33. f6 {[%emt 0:02:14]} Qc6 {[%emt 0:01:04]} 34. f7 {[%emt 0:02:22]} d5 {[%emt 0:03:10]} 35. Qxd8+ {[%emt 0:01:35]} Kxd8 {[%emt 0:00:06]} 36. f8=Q+ {[%emt 0:00:07]} Qe8 {[%emt 0:00:13]} 37. Rxd5+ {[%emt 0:00:03]} Kc7 {[%emt 0:00:15]} 38. Qxe8 {[%emt 0:00:05]} b3 {[%emt 0:00:07]} 39. Qc8+ {[%emt 0:00:13]} 1-0

[Event "FIDE WCCC Open-12 2024"]
[Site "Montesilvano"]
[Date "2024.11.18"]
[Round "3.19"]
[White "Aadik Theophane Lenin"]
[Black "Minga-Nagy, Abel Inti"]
[Result "1-0"]
[ECO "D38"]
[WhiteElo "1857"]
[BlackElo "2033"]
[PlyCount "77"]
[EventDate "2024.11.18"]
[EventType "swiss"]
[EventCountry "ITA"]
[TimeControl "5400+30"]

1. d4 {[%emt 0:00:13]} Nf6 {[%emt 0:00:04]} 2. c4 {[%emt 0:00:14]} e6 {[%emt 0:00:04]} 3. Nf3 {[%emt 0:00:06]} d5 {[%emt 0:00:27]} 4. Nc3 {[%emt 0:00:12]} Bb4 {[%emt 0:00:03]} 5. Bg5 {[%emt 0:02:20]} Nbd7 {[%emt 0:02:34]} 6. e3 {[%emt 0:01:00]} c5 {[%emt 0:01:57]} 7. cxd5 {[%emt 0:03:14]} exd5 {[%emt 0:00:58]} 8. Bd3 {[%emt 0:01:38]} Qa5 {[%emt 0:05:18]} 9. Qc2 {[%emt 0:00:18]} h6 {[%emt 0:09:07]} 10. Bh4 {[%emt 0:06:13]} O-O {[%emt 0:05:17]} 11. O-O {[%emt 0:00:32]} Re8 {[%emt 0:03:37]} 12. Nd2 {[%emt 0:13:10]} cxd4 {[%emt 0:08:09]} 13. exd4 {[%emt 0:08:07]} Qc7 {[%emt 0:10:58]} 14. Rfe1 {[%emt 0:11:13]} Qf4 {[%emt 0:08:12]} 15. Rxe8+ {[%emt 0:14:57]} Nxe8 {[%emt 0:00:48]} 16. Bg3 {[%emt 0:00:15]} Qg5 {[%emt 0:11:33]} 17. Nf3 {[%emt 0:03:45]} Qh5 {[%emt 0:00:37]} 18. Ne2 {[%emt 0:00:49]} g5 {[%emt 0:10:14]} 19. Qb3 {[%emt 0:09:13]} Bf8 {[%emt 0:04:14]} 20. Qxd5 {[%emt 0:00:50]} Ndf6 {[%emt 0:00:50]} 21. Qb3 {[%emt 0:07:35]} Be6 {[%emt 0:04:46]} 22. Bc4 {[%emt 0:00:13]} Bxc4 {[%emt 0:03:23]} 23. Qxc4 {[%emt 0:00:01]} Nd6 {[%emt 0:00:25]} 24. Qd3 {[%emt 0:03:55]} Qg4 {[%emt 0:02:55]} 25. Be5 {[%emt 0:01:28]} Qe6 {[%emt 0:00:31]} 26. Ng3 {[%emt 0:01:24]} Ng4 {[%emt 0:01:40]} 27. Bxd6 {[%emt 0:03:32]} Qxd6 {[%emt 0:00:50]} 28. Qe4 {[%emt 0:00:49]} Nf6 {[%emt 0:00:43]} 29. Qxb7 {[%emt 0:00:07]} Rb8 {[%emt 0:00:19]} 30. Qxa7 {[%emt 0:00:02]} Rxb2 {[%emt 0:00:06]} 31. a4 {[%emt 0:01:02]} Qf4 {[%emt 0:01:04]} 32. Rf1 {[%emt 0:01:03]} h5 {[%emt 0:02:03]} 33. Ne5 {[%emt 0:00:51]} Nd5 {[%emt 0:02:24]} 34. Qd7 {[%emt 0:01:18]} Nb6 {[%emt 0:00:09]} 35. Qd8 {[%emt 0:00:36]} Nxa4 {[%emt 0:00:56]} 36. Nxh5 {[%emt 0:00:31]} Qf5 {[%emt 0:00:15]} 37. Nd7 {[%emt 0:00:20]} Qg6 {[%emt 0:00:57]} 38. Qxf8+ {[%emt 0:00:05]} Kh7 {[%emt 0:00:05]} 39. Ndf6+ {[%emt 0:00:03]} 1-0

[Event "FIDE WCCC Open-12 2024"]
[Site "Montesilvano"]
[Date "2024.11.18"]
[Round "3.20"]
[White "Dauren, Darmen"]
[Black "Sason, Noam"]
[Result "1-0"]
[ECO "D00"]
[WhiteElo "1820"]
[BlackElo "2017"]
[PlyCount "101"]
[EventDate "2024.11.18"]
[EventType "swiss"]
[EventCountry "ITA"]
[TimeControl "5400+30"]

1. d4 {[%emt 1:31:00]} Nf6 {[%emt 0:00:07]} 2. Bg5 {[%emt 0:00:00]} d5 {[%emt 0:00:51]} 3. Bxf6 {[%emt 0:00:00]} gxf6 {[%emt 0:00:56]} 4. e3 {[%emt 0:00:00]} e5 {[%emt 0:02:57]} 5. Nf3 {[%emt 0:00:00]} exd4 {[%emt 0:09:58]} 6. exd4 {[%emt 0:00:00]} c6 {[%emt 0:09:08]} 7. Bd3 {[%emt 0:00:00]} Be6 {[%emt 0:03:21]} 8. c3 {[%emt 0:00:00]} Nd7 {[%emt 0:00:53]} 9. Nbd2 {[%emt 0:00:00]} Qc7 {[%emt 0:02:24]} 10. g3 {[%emt 0:00:00]} h5 {[%emt 0:01:24]} 11. Qc2 {[%emt 0:00:00]} O-O-O {[%emt 0:04:21]} 12. O-O-O {[%emt 0:00:00]} b5 {[%emt 0:01:47]} 13. a4 {[%emt 0:00:00]} b4 {[%emt 0:07:09]} 14. c4 {[%emt 0:00:00]} c5 {[%emt 0:04:39]} 15. Kb1 {[%emt 0:00:00]} Bh6 {[%emt 0:10:37]} 16. cxd5 {[%emt 0:00:00]} Bxd5 {[%emt 0:00:41]} 17. Be4 {[%emt 0:00:00]} Bxe4 {[%emt 0:06:16]} 18. Nxe4 {[%emt 0:00:00]} Qc6 {[%emt 0:07:14]} 19. Nxc5 {[%emt 0:00:00]} Nb6 {[%emt 0:05:05]} 20. Nd3 {[%emt 0:00:00]} Qxc2+ {[%emt 0:00:58]} 21. Kxc2 {[%emt 0:00:00]} a5 {[%emt 0:04:38]} 22. Kb3 {[%emt 0:00:00]} Rhe8 {[%emt 0:01:30]} 23. Rhe1 {[%emt 0:00:00]} Kc7 {[%emt 0:00:31]} 24. Rxe8 {[%emt 0:00:00]} Rxe8 {[%emt 0:00:05]} 25. Re1 {[%emt 0:00:00]} Rxe1 {[%emt 0:00:10]} 26. Ndxe1 {[%emt 0:00:00]} Kc6 {[%emt 0:00:55]} 27. Nh4 {[%emt 0:00:00]} Kd5 {[%emt 0:00:31]} 28. f3 {[%emt 0:00:00]} Be3 {[%emt 0:02:19]} 29. Nf5 {[%emt 0:00:00]} Bxd4 {[%emt 0:00:36]} 30. Nd3 {[%emt 0:00:04]} Be5 {[%emt 0:02:09]} 31. Ne7+ {[%emt 0:01:47]} Kd6 {[%emt 0:01:01]} 32. Nf5+ {[%emt 0:00:20]} Kd5 {[%emt 0:00:57]} 33. Ng7 {[%emt 0:01:40]} Kd4 {[%emt 0:00:49]} 34. Nc1 {[%emt 0:00:52]} Ke3 {[%emt 0:02:35]} 35. f4 {[%emt 0:00:10]} Bc7 {[%emt 0:02:34]} 36. Nxh5 {[%emt 0:01:17]} Kd2 {[%emt 0:00:50]} 37. Na2 {[%emt 0:00:14]} Nd5 {[%emt 0:00:09]} 38. Ng7 {[%emt 0:00:40]} Ne3 {[%emt 0:00:56]} 39. h4 {[%emt 0:00:52]} Kd1 {[%emt 0:00:27]} 40. h5 {[%emt 0:01:15]} Nf1 {[%emt 0:00:57]} 41. Kc4 {[%emt 0:01:16]} Ne3+ {[%emt 0:01:39]} 42. Kb3 {[%emt 0:00:27]} Nf1 {[%emt 0:01:22]} 43. Nxb4 {[%emt 0:00:37]} Nd2+ {[%emt 0:00:06]} 44. Kc3 {[%emt 0:00:15]} axb4+ {[%emt 0:00:56]} 45. Kxb4 {[%emt 0:00:06]} Bd6+ {[%emt 0:00:19]} 46. Kb5 {[%emt 0:00:11]} Kc2 {[%emt 0:01:03]} 47. Nf5 {[%emt 0:00:36]} Bf8 {[%emt 0:00:42]} 48. a5 {[%emt 0:00:25]} Ne4 {[%emt 0:01:14]} 49. h6 {[%emt 0:00:20]} Bxh6 {[%emt 0:00:26]} 50. Nxh6 {[%emt 0:00:01]} Kxb2 {[%emt 0:00:21]} 51. Kc6 {[%emt 0:00:15]} 1-0

[Event "FIDE WCCC Open-12 2024"]
[Site "Montesilvano"]
[Date "2024.11.18"]
[Round "3.21"]
[White "Padure, Dragos-Alexandru"]
[Black "Gao, Arthur"]
[Result "0-1"]
[ECO "B43"]
[WhiteElo "1822"]
[BlackElo "1979"]
[PlyCount "82"]
[EventDate "2024.11.18"]
[EventType "swiss"]
[EventCountry "ITA"]
[TimeControl "5400+30"]

1. e4 {[%emt 0:00:28]} c5 {[%emt 0:00:07]} 2. Nf3 {[%emt 0:00:14]} e6 {[%emt 0:00:08]} 3. d4 {[%emt 0:00:19]} cxd4 {[%emt 0:00:08]} 4. Nxd4 {[%emt 0:00:08]} a6 {[%emt 0:00:10]} 5. Nc3 {[%emt 0:01:50]} b5 {[%emt 0:00:06]} 6. g3 {[%emt 0:03:57]} Bb7 {[%emt 0:00:47]} 7. Bg2 {[%emt 0:00:15]} Nf6 {[%emt 0:00:09]} 8. O-O {[%emt 0:05:22]} b4 {[%emt 0:09:57]} 9. Na4 {[%emt 0:00:28]} Bxe4 {[%emt 0:04:15]} 10. Bxe4 {[%emt 0:04:01]} Nxe4 {[%emt 0:00:06]} 11. Qd3 {[%emt 0:05:43]} d5 {[%emt 0:01:08]} 12. Be3 {[%emt 0:02:37]} Bd6 {[%emt 0:02:37]} 13. Rad1 {[%emt 0:05:12]} Nd7 {[%emt 0:03:59]} 14. Rfe1 {[%emt 0:33:12]} Qa5 {[%emt 0:08:08]} 15. b3 {[%emt 0:01:48]} O-O {[%emt 0:07:34]} 16. Nf3 {[%emt 0:01:54]} Rfc8 {[%emt 0:16:29]} 17. Bd4 {[%emt 0:02:40]} Qc7 {[%emt 0:06:18]} 18. Rc1 {[%emt 0:02:34]} Nc3 {[%emt 0:14:24]} 19. Nxc3 {[%emt 0:01:14]} bxc3 {[%emt 0:00:08]} 20. Ng5 {[%emt 0:01:15]} Nf8 {[%emt 0:01:38]} 21. f4 {[%emt 0:02:49]} a5 {[%emt 0:06:04]} 22. Re3 {[%emt 0:01:13]} Bb4 {[%emt 0:03:46]} 23. f5 {[%emt 0:03:50]} h6 {[%emt 0:04:53]} 24. Nf3 {[%emt 0:01:21]} exf5 {[%emt 0:00:34]} 25. Qxf5 {[%emt 0:00:22]} Qd7 {[%emt 0:02:20]} 26. Qe5 {[%emt 0:03:18]} Ne6 {[%emt 0:05:13]} 27. Qf5 {[%emt 0:01:58]} Qb7 {[%emt 0:01:30]} 28. Kh1 {[%emt 0:04:29]} Nxd4 {[%emt 0:00:35]} 29. Nxd4 {[%emt 0:00:01]} Bc5 {[%emt 0:00:50]} 30. Rd3 {[%emt 0:00:35]} Re8 {[%emt 0:00:26]} 31. Rcd1 {[%emt 0:00:39]} Re4 {[%emt 0:00:37]} 32. Nf3 {[%emt 0:00:41]} Re2 {[%emt 0:00:35]} 33. Rxd5 {[%emt 0:00:58]} g6 {[%emt 0:00:37]} 34. Qf6 {[%emt 0:04:15]} Be7 {[%emt 0:00:08]} 35. Qf4 {[%emt 0:01:12]} Bg5 {[%emt 0:01:01]} 36. Nxg5 {[%emt 0:00:35]} hxg5 {[%emt 0:00:03]} 37. Qf3 {[%emt 0:04:07]} Rae8 {[%emt 0:00:37]} 38. Qxc3 {[%emt 0:01:12]} Qe7 {[%emt 0:00:38]} 39. Qd3 {[%emt 0:00:38]} Qf6 {[%emt 0:00:35]} 40. Rd8 {[%emt 0:00:26]} Qc6+ {[%emt 0:00:09]} 41. Qd5 {[%emt 0:00:28]} Rxd8 {[%emt 0:00:08]} 0-1

[Event "FIDE WCCC Open-12 2024"]
[Site "Montesilvano"]
[Date "2024.11.18"]
[Round "3.22"]
[White "Aansh Nandan Nerurkar"]
[Black "Petrovski, Nikola"]
[Result "1-0"]
[ECO "C54"]
[WhiteElo "2247"]
[BlackElo "1829"]
[PlyCount "65"]
[EventDate "2024.11.18"]
[EventType "swiss"]
[EventCountry "ITA"]
[TimeControl "5400+30"]

1. e4 {[%emt 0:00:02]} e5 {[%emt 0:01:00]} 2. Nf3 {[%emt 0:00:06]} Nc6 {[%emt 0:00:13]} 3. Bc4 {[%emt 0:00:08]} Bc5 {[%emt 0:00:05]} 4. c3 {[%emt 0:00:07]} Nf6 {[%emt 0:00:03]} 5. d4 {[%emt 0:00:06]} exd4 {[%emt 0:00:07]} 6. cxd4 {[%emt 0:00:44]} Bb4+ {[%emt 0:00:13]} 7. Nbd2 {[%emt 0:00:11]} d5 {[%emt 0:04:28]} 8. exd5 {[%emt 0:00:07]} Nxd5 {[%emt 0:00:05]} 9. O-O {[%emt 0:00:10]} O-O {[%emt 0:00:21]} 10. a3 {[%emt 0:00:24]} Bxd2 {[%emt 0:00:07]} 11. Bxd2 {[%emt 0:00:08]} Nb6 {[%emt 0:03:30]} 12. Ba2 {[%emt 0:00:27]} Bg4 {[%emt 0:07:46]} 13. Bc3 {[%emt 0:02:53]} Nd5 {[%emt 0:07:20]} 14. h3 {[%emt 0:02:49]} Nxc3 {[%emt 0:00:19]} 15. bxc3 {[%emt 0:00:09]} Bf5 {[%emt 0:04:21]} 16. Re1 {[%emt 0:02:40]} Qf6 {[%emt 0:03:28]} 17. Re3 {[%emt 0:09:35]} Rfe8 {[%emt 0:03:37]} 18. Qe2 {[%emt 0:00:23]} Rxe3 {[%emt 0:00:28]} 19. Qxe3 {[%emt 0:00:02]} h6 {[%emt 0:00:38]} 20. Nd2 {[%emt 0:02:48]} Qg5 {[%emt 0:12:13]} 21. Qxg5 {[%emt 0:02:37]} hxg5 {[%emt 0:00:13]} 22. g4 {[%emt 0:00:16]} Bg6 {[%emt 0:00:54]} 23. Nf3 {[%emt 0:00:18]} Re8 {[%emt 0:00:19]} 24. Nxg5 {[%emt 0:10:30]} Re2 {[%emt 0:04:36]} 25. f4 {[%emt 0:04:24]} Nd8 {[%emt 0:02:09]} 26. f5 {[%emt 0:00:10]} Bh7 {[%emt 0:00:06]} 27. Kf1 {[%emt 0:01:06]} Rh2 {[%emt 0:03:13]} 28. Re1 {[%emt 0:01:26]} Rh1+ {[%emt 0:00:31]} 29. Kf2 {[%emt 0:00:01]} Rxe1 {[%emt 0:00:46]} 30. Kxe1 {[%emt 0:00:01]} g6 {[%emt 0:01:34]} 31. f6 {[%emt 0:00:42]} Ne6 {[%emt 0:01:34]} 32. Bxe6 {[%emt 0:00:07]} fxe6 {[%emt 0:00:22]} 33. f7+ {[%emt 0:00:02]} 1-0

[Event "FIDE WCCC Open-12 2024"]
[Site "Montesilvano"]
[Date "2024.11.18"]
[Round "3.23"]
[White "Anagnostopoulos, Panagiotis"]
[Black "Torres Rebolledo, Alvaro"]
[Result "0-1"]
[ECO "B13"]
[WhiteElo "1848"]
[BlackElo "2216"]
[PlyCount "116"]
[EventDate "2024.11.18"]
[EventType "swiss"]
[EventCountry "ITA"]
[TimeControl "5400+30"]

1. e4 {[%emt 0:00:05]} c6 {[%emt 0:00:58]} 2. d4 {[%emt 0:00:07]} d5 {[%emt 0:00:08]} 3. exd5 {[%emt 0:00:12]} cxd5 {[%emt 0:00:09]} 4. Bd3 {[%emt 0:00:11]} Nc6 {[%emt 0:00:08]} 5. c3 {[%emt 0:00:05]} e6 {[%emt 0:00:07]} 6. Bf4 {[%emt 0:02:48]} Bd6 {[%emt 0:00:13]} 7. Bxd6 {[%emt 0:00:28]} Qxd6 {[%emt 0:00:02]} 8. Nf3 {[%emt 0:01:03]} Nge7 {[%emt 0:00:23]} 9. O-O {[%emt 0:01:05]} O-O {[%emt 0:08:18]} 10. Nbd2 {[%emt 0:02:27]} f6 {[%emt 0:01:45]} 11. c4 {[%emt 0:01:57]} Bd7 {[%emt 0:00:53]} 12. cxd5 {[%emt 0:03:47]} exd5 {[%emt 0:00:30]} 13. Nb3 {[%emt 0:00:58]} Bg4 {[%emt 0:03:25]} 14. Re1 {[%emt 0:01:43]} Rfe8 {[%emt 0:04:35]} 15. Re3 {[%emt 0:02:25]} a5 {[%emt 0:20:53]} 16. a4 {[%emt 0:04:37]} Qb4 {[%emt 0:07:06]} 17. h3 {[%emt 0:03:19]} Bh5 {[%emt 0:02:05]} 18. Be2 {[%emt 0:01:37]} Rac8 {[%emt 0:08:14]} 19. g4 {[%emt 0:07:56]} Bg6 {[%emt 0:02:53]} 20. Nc5 {[%emt 0:01:08]} Nxd4 {[%emt 0:02:47]} 21. Nxd4 {[%emt 0:01:03]} Qxc5 {[%emt 0:01:18]} 22. Bb5 {[%emt 0:05:05]} Nc6 {[%emt 0:00:36]} 23. Nb3 {[%emt 0:01:47]} Qd6 {[%emt 0:01:45]} 24. Rxe8+ {[%emt 0:01:25]} Bxe8 {[%emt 0:07:03]} 25. Bxc6 {[%emt 0:00:44]} Bxc6 {[%emt 0:02:33]} 26. Nxa5 {[%emt 0:00:30]} Qc5 {[%emt 0:03:34]} 27. Nxc6 {[%emt 0:00:37]} Rxc6 {[%emt 0:00:55]} 28. Qd3 {[%emt 0:01:47]} Rd6 {[%emt 0:02:04]} 29. Rd1 {[%emt 0:01:07]} Rd8 {[%emt 0:01:14]} 30. Qf5 {[%emt 0:01:24]} Qd6 {[%emt 0:01:03]} 31. Rd4 {[%emt 0:01:03]} Qe5 {[%emt 0:00:57]} 32. Qd3 {[%emt 0:00:23]} h5 {[%emt 0:01:38]} 33. b4 {[%emt 0:01:38]} hxg4 {[%emt 0:01:03]} 34. hxg4 {[%emt 0:01:07]} Kf7 {[%emt 0:01:01]} 35. Qd2 {[%emt 0:05:25]} Rh8 {[%emt 0:02:13]} 36. f4 {[%emt 0:08:02]} Qe6 {[%emt 0:00:18]} 37. f5 {[%emt 0:00:18]} Qe5 {[%emt 0:00:46]} 38. Rf4 {[%emt 0:02:11]} d4 {[%emt 0:04:38]} 39. Qa2+ {[%emt 0:05:07]} Kf8 {[%emt 0:01:20]} 40. Qe6 {[%emt 0:00:32]} Qxf4 {[%emt 0:01:35]} 41. Qc8+ {[%emt 0:00:16]} Ke7 {[%emt 0:00:07]} 42. Qxh8 {[%emt 0:01:51]} Qxg4+ {[%emt 0:00:05]} 43. Kh2 {[%emt 0:00:17]} d3 {[%emt 0:01:29]} 44. Qc8 {[%emt 0:00:35]} Qe2+ {[%emt 0:00:26]} 45. Kg3 {[%emt 0:00:49]} Qe3+ {[%emt 0:00:58]} 46. Kg2 {[%emt 0:00:19]} Qe4+ {[%emt 0:00:02]} 47. Kg3 {[%emt 0:00:49]} Kf7 {[%emt 0:00:39]} 48. Qd7+ {[%emt 0:00:39]} Kg8 {[%emt 0:00:08]} 49. a5 {[%emt 0:00:34]} Qe3+ {[%emt 0:00:21]} 50. Kg4 {[%emt 0:00:15]} d2 {[%emt 0:01:01]} 51. Qd5+ {[%emt 0:00:16]} Kh7 {[%emt 0:00:09]} 52. Qh1+ {[%emt 0:00:06]} Qh6 {[%emt 0:00:04]} 53. Qf3 {[%emt 0:00:30]} Qg5+ {[%emt 0:00:24]} 54. Kh3 {[%emt 0:00:05]} Kh6 {[%emt 0:00:20]} 55. a6 {[%emt 0:00:34]} bxa6 {[%emt 0:00:30]} 56. Qa8 {[%emt 0:00:04]} Qxf5+ {[%emt 0:00:25]} 57. Kg3 {[%emt 0:00:11]} d1=Q {[%emt 0:00:10]} 58. Qh8+ {[%emt 0:00:12]} Qh7 {[%emt 0:00:03]} 0-1